bitfinex/quotes_SOLUSD_20260228
["timestamp","ask_amount","ask_price","bid_price","bid_amount"]
[1772263937297,12.9583633,78.38,78.35,15.47246245]
[1772263937501,0.1,78.39,78.37,14.62556334]
[1772263937799,0.1,78.39,78.363,44.66393578]
[1772263937800,12.75266211,78.415,78.381,0.78247423]
[1772263938010,12.75177462,78.421,78.39,14.62556334]
[1772263938190,14.62556334,78.42,78.39,14.62556334]
[1772263939015,15.55674742,78.42,78.39,14.62556334]
[1772263939200,15.55674742,78.42,78.381,0.78247423]
[1772263939596,12.75201162,78.419,78.381,0.78247423]
[1772263939811,12.75201162,78.419,78.39,14.62556334]
[1772263940313,27.37591076,78.43,78.391,0.81379682]
[1772263940494,0.93118408,78.429,78.391,0.81379682]
[1772263940689,14.62556334,78.42,78.39,14.62556334]
[1772263940920,0.93118408,78.399,78.362,12.7611571]
[1772263941295,14.62556334,78.39,78.36,14.62556334]
[1772263941491,0.93118408,78.399,78.36,14.62556334]
[1772263941713,0.93118408,78.397,78.36,14.62556334]
[1772263941926,14.62556334,78.39,78.36,14.62556334]
[1772263942404,12.75542743,78.398,78.371,0.84689911]
[1772263942606,12.75412595,78.406,78.371,0.84689911]
[1772263942798,0.14216157,78.429,78.391,0.84689911]
[1772263943004,0.93118408,78.428,78.391,0.84689911]
[1772263943399,14.62556334,78.42,78.391,0.84689911]
[1772263943599,12.75201162,78.419,78.39,14.62556334]
[1772263944115,12.75201162,78.419,78.354,5.36086188]
[1772263944116,0.93118408,78.397,78.341,12.76470813]
[1772263944318,0.93118408,78.398,78.36,14.62556334]
[1772263944614,14.62556334,78.39,78.361,0.84689911]
[1772263945116,14.62556334,78.39,78.326,63.80089554]
[1772263945117,0.93118408,78.367,78.32,15.47246245]
[1772263945309,0.93118408,78.359,78.322,0.84689911]
[1772263945614,15.55674742,78.36,78.322,0.84689911]
[1772263945817,63.32099278,78.424,78.3,14.62556334]
[1772263945818,1.06751761,78.392,78.35,14.62556334]
[1772263946117,1.06751761,78.392,78.37,14.62556334]
[1772263946321,1.20967918,78.409,78.37,14.62556334]
[1772263946508,1.20967918,78.409,78.38,14.62556334]
[1772263946809,1.20967918,78.409,78.37,14.62556334]
[1772263947023,1.06751761,78.407,78.37,14.62556334]
[1772263947498,1.06751761,78.407,78.38,14.62556334]
[1772263947695,1.06751761,78.405,78.37,14.62556334]
[1772263948213,1.06751761,78.405,78.38,14.62556334]
[1772263949713,12.7544513,78.404,78.38,14.62556334]
[1772263950027,1.06751761,78.403,78.38,14.62556334]
[1772263951832,1.06751761,78.401,78.38,14.62556334]
[1772263953996,12.75510204,78.4,78.38,14.62556334]
[1772263954502,13.82261965,78.4,78.38,14.62556334]
[1772263955134,1.06751761,78.399,78.38,14.62556334]
[1772263955429,12.75510204,78.4,78.35,14.52689528]
[1772263955430,1.06751761,78.379,78.35,14.52689528]
[1772263955808,1.06751761,78.377,78.33,12.76644589]
[1772263956014,1.06751761,78.367,78.33,14.52689528]
[1772263956717,1.06751761,78.367,78.34,14.52689528]
[1772263957111,1.06751761,78.367,78.32,0.2064798]
[1772263957112,1.06751761,78.359,78.32,14.52689528]
[1772263957423,1.06751761,78.359,78.33,14.52689528]
[1772263958119,1.06751761,78.357,78.33,14.52689528]
[1772263958329,1.06751761,78.357,78.32,14.52689528]
[1772263958837,1.06751761,78.357,78.33,14.52689528]
[1772263959038,1.06751761,78.357,78.316,12.76878287]
[1772263959220,1.06751761,78.357,78.33,14.52689528]
[1772263960330,12.76145758,78.361,78.34,14.52689528]
[1772263960542,1.16174173,78.36,78.33,14.52689528]
[1772263960818,1.16174173,78.36,78.304,31.92646168]
[1772263960819,1.16174173,78.36,78.34,14.52689528]
[1772263961010,1.16174173,78.36,78.33,14.52689528]
[1772263961709,12.76177592,78.359,78.34,14.52689528]
[1772263962430,1.17163508,78.358,78.34,14.52689528]
[1772263962829,12.76210166,78.357,78.34,14.52689528]
[1772263963330,1.17163508,78.374,78.35,14.52689528]
[1772263963529,1.17163508,78.383,78.36,14.52689528]
[1772263963741,1.17163508,78.403,78.37,14.9131317]
[1772263964029,1.17163508,78.403,78.38,14.52689528]
[1772263964218,1.17163508,78.403,78.39,14.52689528]
[1772263964413,12.75363797,78.409,78.39,14.52689528]
[1772263964613,1.17163508,78.408,78.38,14.52689528]
[1772263964814,1.17163508,78.408,78.34,12.76484729]
[1772263964815,1.17163508,78.399,78.36,14.52689528]
[1772263965611,1.17163508,78.399,78.323,63.16762322]
[1772263965612,1.17163508,78.389,78.32,0.42934778]
[1772263965910,1.17163508,78.379,78.35,14.52689528]
[1772263966328,1.17163508,78.4,78.37,14.52689528]
[1772263966628,1.17163508,78.4,78.38,14.52689528]
[1772263966828,13.92689981,78.399,78.37,14.52689528]
[1772263968936,11.92689981,78.399,78.37,14.52689528]
[1772263969915,31.88490823,78.407,78.37,14.52689528]
[1772263970434,14.52689528,78.4,78.37,14.52689528]
[1772263970736,14.52689528,78.4,78.362,12.76113341]
[1772263970936,31.88490823,78.407,78.371,1.14729234]
[1772263971520,1.17163508,78.406,78.371,1.14729234]
[1772263972133,1.17163508,78.398,78.36,14.52689528]
[1772263972843,1.17163508,78.398,78.361,1.14729234]
[1772263974620,1.17163508,78.396,78.361,1.14729234]
[1772263975431,1.17163508,78.396,78.326,63.80089554]
[1772263975432,14.52689528,78.38,78.285,63.45474567]
[1772263975641,15.69853036,78.36,78.33,14.52689528]
[1772263976530,1.17163508,78.359,78.324,1.14729234]
[1772263976740,1.17163508,78.357,78.325,12.76731567]
[1772263976955,1.17163508,78.357,78.324,1.14729234]
[1772263977327,12.7615974,78.361,78.34,14.52689528]
[1772263978842,1.17163508,78.365,78.34,14.52689528]
[1772263979039,1.17163508,78.365,78.333,12.76588559]
[1772263980245,1.17163508,78.385,78.351,1.14729234]
[1772263980425,1.17163508,78.379,78.35,14.52689528]
[1772263980625,1.17163508,78.369,78.333,12.76588559]
[1772263980832,1.17163508,78.367,78.33,15.67418762]
[1772263981044,1.17163508,78.359,78.33,14.52689528]
[1772263981226,1.17163508,78.349,78.32,14.52689528]
[1772263981430,1.17163508,78.349,78.315,12.76894592]
[1772263981623,1.17163508,78.349,78.32,14.52689528]
[1772263981829,1.17163508,78.339,78.31,14.52689528]
[1772263982943,1.17163508,78.337,78.3,14.72689528]
[1772263983245,1.17163508,78.329,78.3,0.2]
[1772263983633,1.17163508,78.329,78.3,14.72689528]
[1772263983836,1.17163508,78.329,78.31,14.52689528]
[1772263984034,1.17163508,78.342,78.32,14.52689528]
[1772263984242,1.17163508,78.342,78.301,44.6993014]
[1772263984243,1.17163508,78.359,78.33,14.52689528]
[1772263984430,1.17163508,78.359,78.33,15.67418762]
[1772263984947,1.17163508,78.357,78.33,14.52689528]
[1772263985248,14.52689528,78.4,78.33,14.52689528]
[1772263985249,13.93238724,78.366,78.35,14.52689528]
[1772263986128,1.17163508,78.359,78.308,1.14729234]
[1772263986331,1.17163508,78.357,78.32,14.52689528]
[1772263986840,12.76226453,78.356,78.321,12.76796772]
[1772263987045,12.76148812,78.361,78.33,14.52689528]
[1772263987352,1.17163508,78.36,78.34,14.52689528]
[1772263988240,13.04463347,78.368,78.34,14.52689528]
[1772263988442,12.76031033,78.368,78.34,14.52689528]
[1772263989047,1.17163508,78.369,78.35,14.52689528]
[1772263989432,12.76031033,78.368,78.35,14.52689528]
[1772263990240,1.17163508,78.367,78.34,14.52689528]
[1772263990632,1.43941097,78.357,78.306,1.39639933]
[1772263990852,1.43941097,78.349,78.311,1.39639933]
[1772263991154,1.43941097,78.349,78.32,14.52689528]
[1772263991844,1.43941097,78.362,78.34,14.52689528]
[1772263992433,1.43941097,78.373,78.35,14.52689528]
[1772263992833,1.43941097,78.373,78.341,12.76470813]
[1772263993046,1.43941097,78.373,78.342,1.39639933]
[1772263993249,12.75868228,78.378,78.36,14.52689528]
[1772263993454,1.43941097,78.377,78.351,1.39639933]
[1772263994350,1.43941097,78.375,78.342,1.39639933]
[1772263994644,1.43941097,78.375,78.343,12.76438226]
[1772263994849,1.43941097,78.375,78.35,14.52689528]
[1772263995630,1.43941097,78.375,78.34,14.52689528]
[1772263996142,14.52689528,78.37,78.333,1.39639933]
[1772263996347,1.43941097,78.367,78.333,1.39639933]
[1772263996635,1.43941097,78.367,78.34,14.52689528]
[1772263997235,1.43941097,78.367,78.333,1.39639933]
[1772263997634,1.43941097,78.367,78.333,14.16225956]
[1772263998245,1.43941097,78.367,78.198,28.1161562]
[1772263998246,1.43941097,78.347,78.31,14.52689528]
[1772263998544,1.43941097,78.347,78.311,1.39639933]
[1772263998934,1.43941097,78.329,78.3,0.2]
[1772263999137,1.43941097,78.339,78.311,1.39639933]
[1772264000353,12.76519696,78.338,78.311,1.39639933]
[1772264000547,1.43941097,78.337,78.303,1.39639933]
[1772264001050,1.43941097,78.337,78.301,1.39639933]
[1772264001561,1.43941097,78.337,78.3,0.2]
[1772264001764,1.43941097,78.329,78.3,0.2]
[1772264002338,1.43941097,78.327,78.3,0.2]
[1772264002631,1.43941097,78.327,78.3,14.72689528]
[1772264002835,31.91299241,78.338,78.301,1.39639933]
[1772264002836,1.43941097,78.338,78.301,1.39639933]
[1772264003039,12.76535991,78.337,78.31,14.52689528]
[1772264004243,63.80123563,78.369,78.3,44.89984246]
[1772264004244,1.43941097,78.39,78.331,1.68072247]
[1772264004550,1.43941097,78.39,78.301,1.27712289]
[1772264004551,1.43941097,78.39,78.37,14.52689528]
[1772264004747,1.43941097,78.409,78.38,14.52689528]
[1772264004950,1.43941097,78.423,78.4,14.52689528]
[1772264005257,1.43941097,78.423,78.39,14.52689528]
[1772264005437,1.43941097,78.419,78.39,14.52689528]
[1772264006357,14.19148044,78.419,78.39,27.28351866]
[1772264006563,1.43941097,78.418,78.39,27.28351866]
[1772264007156,1.43941097,78.418,78.381,1.39639933]
[1772264007362,1.43941097,78.418,78.39,14.52689528]
[1772264007951,1.43941097,78.418,78.381,1.39639933]
[1772264008542,14.19174783,78.417,78.382,14.15443051]
[1772264008742,14.19174783,78.417,78.39,14.52689528]
[1772264009957,1.43941097,78.416,78.39,14.52689528]
[1772264010153,1.43941097,78.409,78.363,1.39639933]
[1772264010355,1.43941097,78.409,78.38,14.52689528]
[1772264010554,1.43941097,78.426,78.391,1.39639933]
[1772264012171,1.43941097,78.419,78.381,1.39639933]
[1772264012472,1.43941097,78.419,78.39,14.52689528]
[1772264012660,12.75217424,78.418,78.39,14.52689528]
[1772264012848,1.43941097,78.417,78.39,14.52689528]
[1772264014771,0.28432314,78.429,78.37,14.52689528]
[1772264014772,1.43941097,78.409,78.37,14.52689528]
[1772264014953,1.43941097,78.409,78.364,12.7608382]
[1772264014954,1.43941097,78.409,78.367,1.39639933]
[1772264015153,1.43941097,78.409,78.364,12.7608382]
[1772264015154,1.43941097,78.409,78.371,1.39639933]
[1772264016059,1.43941097,78.408,78.38,14.52081573]
[1772264016370,1.43941097,78.408,78.371,1.39639933]
[1772264016759,1.43941097,78.406,78.371,1.39639933]
[1772264016961,1.43941097,78.406,78.35,14.52081573]
[1772264016962,1.43941097,78.389,78.351,1.39639933]
[1772264017166,1.43941097,78.389,78.361,1.39639933]
[1772264017557,1.72373411,78.399,78.361,1.39639933]
[1772264017768,1.43941097,78.399,78.37,14.52081573]
[1772264018074,1.43941097,78.399,78.324,63.8368617]
[1772264018075,1.43941097,78.397,78.36,14.52081573]
[1772264018666,1.43941097,78.387,78.36,14.52081573]
[1772264018864,1.43941097,78.387,78.352,1.39639933]
[1772264019069,1.43941097,78.387,78.36,14.52081573]
[1772264019586,1.43941097,78.387,78.35,14.52081573]
[1772264019765,1.43941097,78.369,78.34,14.52081573]
[1772264020083,1.43941097,78.369,78.34,15.91721506]
[1772264020261,1.43941097,78.369,78.341,1.39639933]
[1772264020964,12.76031033,78.368,78.341,1.39639933]
[1772264021283,12.76031033,78.368,78.35,14.52081573]
[1772264021780,12.76031033,78.368,78.306,63.85132436]
[1772264021781,12.75884506,78.377,78.36,14.52081573]
[1772264021983,12.75884506,78.377,78.351,1.63974518]
[1772264022476,12.75884506,78.377,78.342,12.76454519]
[1772264022477,1.55623985,78.437,78.37,14.52081573]
[1772264022671,1.55623985,78.409,78.371,1.63974518]
[1772264023182,14.52081573,78.41,78.371,1.63974518]
[1772264023183,1.55623985,78.407,78.371,1.63974518]
[1772264024081,1.55623985,78.405,78.371,1.63974518]
[1772264026382,1.55623985,78.389,78.341,1.92406832]
[1772264026677,1.55623985,78.389,78.351,1.63974518]
[1772264026882,1.55623985,78.389,78.36,14.52081573]
[1772264027178,14.52081573,78.39,78.36,14.52081573]
[1772264027179,1.55623985,78.398,78.361,1.63974518]
[1772264027679,1.55623985,78.398,78.37,14.52081573]
[1772264027876,1.55623985,78.398,78.361,1.63974518]
[1772264028480,38.36,78.438,78.335,108.5083296]
[1772264028481,12.75394907,78.408,78.371,1.63974518]
[1772264028684,1.55623985,78.407,78.371,1.63974518]
[1772264030385,1.55623985,78.405,78.371,14.39948673]
[1772264030587,1.55623985,78.405,78.372,1.63974518]
[1772264030784,1.55623985,78.437,78.381,1.63974518]
[1772264030984,1.55623985,78.419,78.381,1.63974518]
[1772264031470,1.55623985,78.409,78.381,1.63974518]
[1772264031971,1.55623985,78.409,78.352,63.81452577]
[1772264031972,14.52081573,78.43,78.39,14.52081573]
[1772264032187,1.55623985,78.429,78.39,14.52081573]
[1772264032395,44.62691895,78.428,78.39,14.52081573]
[1772264032686,1.55623985,78.427,78.39,27.27744678]
[1772264032989,1.55623985,78.427,78.391,12.75656644]
[1772264033191,1.55623985,78.419,78.39,14.52081573]
[1772264034066,1.55623985,78.419,78.391,1.63974518]
[1772264034272,1.55623985,78.427,78.392,1.63974518]
[1772264034590,1.55623985,78.425,78.392,1.63974518]
[1772264034889,1.55623985,78.425,78.393,12.75624099]
[1772264035268,1.55623985,78.425,78.392,1.63974518]
[1772264035674,1.55623985,78.419,78.39,14.52081573]
[1772264036191,1.55623985,78.419,78.383,1.63974518]
[1772264036517,1.55623985,78.419,78.384,1.68956788]
[1772264037090,1.76909599,78.417,78.382,1.68956788]
[1772264037290,14.52081573,78.45,78.381,12.75819395]
[1772264037291,1.76909599,78.461,78.411,1.68956788]
[1772264037581,1.76909599,78.449,78.41,14.52081573]
[1772264038175,1.76909599,78.449,78.41,16.21038361]
[1772264038580,1.76909599,78.458,78.44,14.52081573]
[1772264038984,1.76909599,78.458,78.431,1.68956788]
[1772264039194,1.86909599,78.47,78.45,14.52081573]
[1772264039389,1.86909599,78.47,78.432,12.749898]
[1772264039390,1.76909599,78.468,78.432,1.68956788]
[1772264039592,1.76909599,78.468,78.44,14.52081573]
[1772264039791,0.1,78.47,78.451,1.68956788]
[1772264040098,0.1,78.48,78.461,1.68956788]
[1772264040296,0.1,78.49,78.471,1.68956788]
[1772264040482,1.76909599,78.488,78.46,14.52081573]
[1772264040691,1.76909599,78.488,78.451,1.68956788]
[1772264041000,0.1,78.49,78.461,1.68956788]
[1772264041186,0.1,78.49,78.408,63.71867309]
[1772264041187,0.1,78.5,78.481,1.68956788]
[1772264041520,1.76909599,78.532,78.463,0.28432314]
[1772264041521,1.76909599,78.538,78.491,1.68956788]
[1772264041688,1.76909599,78.538,78.51,14.52081573]
[1772264042301,0.1,78.54,78.511,1.68956788]
[1772264042494,0.1,78.54,78.52,14.52081573]
[1772264042692,63.61777433,78.595,78.5,14.52081573]
[1772264042693,1.76909599,78.57,78.531,1.68956788]
[1772264042895,0.1,78.62,78.5,14.52081573]
[1772264042896,1.76909599,78.579,78.55,14.52081573]
[1772264043084,1.76909599,78.596,78.56,14.52081573]
[1772264043282,1.76909599,78.589,78.55,14.52081573]
[1772264043478,1.76909599,78.589,78.56,14.52081573]
[1772264043702,1.76909599,78.599,78.556,1.68956788]
[1772264043883,1.76909599,78.589,78.55,14.52081573]
[1772264044078,16.28991172,78.58,78.55,14.52081573]
[1772264044299,12.72020985,78.616,78.52,16.21038361]
[1772264044300,1.76909599,78.559,78.52,16.21038361]
[1772264044604,1.76909599,78.549,78.512,1.68956788]
[1772264044900,1.76909599,78.569,78.531,1.68956788]
[1772264045100,14.62081573,78.57,78.543,1.68956788]
[1772264045101,0.1,78.57,78.543,1.68956788]
[1772264045306,0.1,78.57,78.542,12.73204145]
[1772264045307,1.76909599,78.589,78.56,14.52081573]
[1772264045478,1.76909599,78.588,78.55,14.52081573]
[1772264045878,1.76909599,78.569,78.53,14.52081573]
[1772264046084,1.76909599,78.569,78.531,1.68956788]
[1772264046300,14.52081573,78.56,78.531,1.68956788]
[1772264046506,1.76909599,78.559,78.521,1.68956788]
[1772264046686,14.52081573,78.56,78.531,1.68956788]
[1772264046890,1.76909599,78.559,78.522,1.68956788]
[1772264047282,44.5356173,78.589,78.54,16.21038361]
[1772264047283,1.76909599,78.579,78.54,16.21038361]
[1772264047598,1.76909599,78.577,78.541,1.68956788]
[1772264048004,1.76909599,78.589,78.55,14.52081573]
[1772264048207,1.76909599,78.579,78.54,14.52081573]
[1772264048813,14.52081573,78.58,78.551,1.68956788]
[1772264048988,1.76909599,78.579,78.541,1.68956788]
[1772264049312,1.76909599,78.577,78.541,1.68956788]
[1772264049492,1.76909599,78.577,78.54,27.25312674]
[1772264049685,1.76909599,78.577,78.541,1.68956788]
[1772264049893,1.76909599,78.593,78.541,1.68956788]
[1772264050093,8.00903461,78.637,78.57,14.52081573]
[1772264050094,1.76909599,78.604,78.57,14.52081573]
[1772264050303,1.76909599,78.589,78.551,1.70778699]
[1772264050613,1.7656147,78.599,78.561,1.70778699]
[1772264051399,1.7656147,78.597,78.561,1.70778699]
[1772264051594,14.52081573,78.59,78.56,14.52081573]
[1772264051794,1.7656147,78.589,78.56,9.2440329]
[1772264052001,1.7656147,78.589,78.54,33.53870117]
[1772264052002,1.7656147,78.579,78.541,1.70778699]
[1772264052405,14.52081573,78.58,78.541,1.70778699]
[1772264052711,14.52081573,78.58,78.527,44.57065722]
[1772264052712,1.7656147,78.589,78.56,14.52081573]
[1772264053105,1.7656147,78.589,78.551,1.70778699]
[1772264053408,12.72458899,78.588,78.56,14.52081573]
[1772264053715,1.7656147,78.589,78.56,14.52081573]
[1772264054093,12.72458899,78.588,78.56,14.52081573]
[1772264054293,1.7656147,78.589,78.56,14.52081573]
[1772264054506,14.52081573,78.6,78.561,1.70778699]
[1772264054507,1.7656147,78.599,78.561,1.70778699]
[1772264054703,1.7656147,78.589,78.56,14.52081573]
[1772264055088,1.7656147,78.589,78.551,14.43833797]
[1772264055395,1.7656147,78.587,78.551,1.70778699]
[1772264055708,1.7656147,78.579,78.55,14.52081573]
[1772264056097,1.7656147,78.579,78.54,14.52081573]
[1772264056298,1.7656147,78.569,78.54,14.52081573]
[1772264056501,1.7656147,78.569,78.54,27.25306821]
[1772264056703,1.7656147,78.569,78.536,1.70778699]
[1772264057012,1.7656147,78.569,78.54,14.52081573]
[1772264057320,1.7656147,78.569,78.474,63.95189055]
[1772264057321,1.7656147,78.549,78.511,1.70778699]
[1772264057604,108.15900644,78.588,78.53,14.52081573]
[1772264057605,1.7656147,78.558,78.53,14.52081573]
[1772264057815,63.62294497,78.588,78.522,12.73528437]
[1772264057816,1.7656147,78.598,78.541,1.70778699]
[1772264058023,31.80702044,78.599,78.541,1.70778699]
[1772264058024,2.04993784,78.579,78.541,1.70778699]
[1772264059497,2.04993784,78.579,78.531,1.70778699]
[1772264059498,1.7656147,78.568,78.531,1.70778699]
[1772264059794,1.7656147,78.568,78.54,14.52081573]
[1772264060715,1.7656147,78.568,78.532,12.73366271]
[1772264060716,1.7656147,78.568,78.531,1.70778699]
[1772264060924,1.7656147,78.568,78.532,12.73366271]
[1772264061211,1.7656147,78.568,78.531,1.70778699]
[1772264061521,38.36,78.614,78.531,1.70778699]
[1772264061522,1.7656147,78.576,78.541,1.70778699]
[1772264061816,1.7656147,78.569,78.54,14.52081573]
[1772264062117,1.7656147,78.569,78.541,12.73220356]
[1772264062612,1.7656147,78.589,78.551,1.70778699]
[1772264062809,14.52081573,78.65,78.57,14.52081573]
[1772264062810,12.72280817,78.599,78.57,14.52081573]
[1772264064308,16.28643043,78.59,78.561,1.70778699]
[1772264064508,1.7656147,78.589,78.552,1.70778699]
[1772264064921,44.52982861,78.599,78.52,14.52081573]
[1772264064922,1.7656147,78.559,78.52,14.52081573]
[1772264065221,14.52081573,78.54,78.513,12.73674423]
[1772264065422,14.52081573,78.52,78.493,1.70778699]
[1772264065629,1.7656147,78.529,78.494,12.73982724]
[1772264065800,1.7656147,78.529,78.495,1.70778699]
[1772264066128,14.52081573,78.54,78.51,14.52081573]
[1772264066422,0.1,78.62,78.531,1.70778699]
[1772264066596,14.52081573,78.58,78.54,14.52081573]
[1772264067414,14.52081573,78.6,78.531,1.70778699]
[1772264067415,12.72766612,78.569,78.531,1.70778699]
[1772264067598,12.72766612,78.569,78.54,14.52081573]
[1772264067799,12.72766612,78.569,78.54,16.22860272]
[1772264068001,12.72766612,78.569,78.532,12.73366271]
[1772264068002,14.52081573,78.6,78.561,1.70778699]
[1772264068311,16.28643043,78.6,78.561,1.70778699]
[1772264068494,1.7656147,78.599,78.57,14.52081573]
[1772264068698,1.7656147,78.599,78.57,16.22860272]
[1772264069098,1.7656147,78.599,78.57,14.52081573]
[1772264069299,1.7656147,78.599,78.561,1.70778699]
[1772264069518,14.48858475,78.598,78.563,1.70778699]
[1772264070103,16.28643043,78.59,78.563,1.70778699]
[1772264070425,12.72297005,78.598,78.57,14.52081573]
[1772264070600,14.48858475,78.598,78.563,1.70778699]
[1772264070800,14.48858475,78.598,78.571,1.70778699]
[1772264071003,14.48858475,78.598,78.561,12.72888097]
[1772264071004,63.59785802,78.619,78.59,14.52081573]
[1772264071005,1.7656147,78.619,78.59,14.52081573]
[1772264071306,1.7656147,78.599,78.557,1.70778699]
[1772264071521,1.7656147,78.599,78.561,12.7289622]
[1772264071717,1.7656147,78.589,78.557,1.70778699]
[1772264071918,14.52081573,78.57,78.538,1.70778699]
[1772264072305,1.7656147,78.569,78.538,1.70778699]
[1772264072500,1.7656147,78.569,78.54,14.52081573]
[1772264072919,1.7656147,78.569,78.538,1.70778699]
[1772264073306,14.52081573,78.56,78.531,1.70778699]
[1772264073508,1.7656147,78.567,78.531,1.70778699]
[1772264073713,1.7656147,78.567,78.533,1.70778699]
[1772264074725,1.7656147,78.598,78.561,1.70778699]
[1772264074920,1.7656147,78.598,78.57,14.52081573]
[1772264075307,1.7656147,78.598,78.532,108.23613303]
[1772264075308,1.7656147,78.589,78.547,1.70778699]
[1772264075621,1.7656147,78.579,78.551,12.73058267]
[1772264075824,14.52081573,78.59,78.56,14.52081573]
[1772264075825,16.28643043,78.59,78.56,14.52081573]
[1772264076004,1.7656147,78.599,78.561,1.70778699]
[1772264076209,1.7656147,78.589,78.561,1.70778699]
[1772264076819,16.28643043,78.6,78.561,1.70778699]
[1772264077124,16.28643043,78.6,78.57,14.52081573]
[1772264077322,1.7656147,78.599,78.561,1.70778699]
[1772264077627,1.7656147,78.599,78.57,17.3412772]
[1772264077821,17.3412772,78.66,78.562,12.72880018]
[1772264077822,17.3412772,78.64,78.59,17.3412772]
[1772264078012,17.3412772,78.64,78.581,1.70778699]
[1772264078013,12.71909198,78.622,78.601,1.70778699]
[1772264078214,12.71641852,78.639,78.601,1.70778699]
[1772264078412,17.3412772,78.64,78.601,1.70778699]
[1772264078413,12.71775394,78.631,78.601,1.70778699]
[1772264078621,12.7195716,78.619,78.563,1.99211013]
[1772264078827,12.7195716,78.619,78.581,1.70778699]
[1772264079211,17.3412772,78.61,78.581,1.70778699]
[1772264079407,12.7195716,78.619,78.581,1.70778699]
[1772264079614,12.7195716,78.619,78.538,5.36086188]
[1772264079615,12.71658246,78.638,78.611,1.70778699]
[1772264079828,1.7656147,78.648,78.611,1.70778699]
[1772264080012,17.3412772,78.64,78.611,1.70778699]
[1772264080212,17.3412772,78.64,78.61,17.3412772]
[1772264080213,1.7656147,78.639,78.61,17.3412772]
[1772264080415,17.3412772,78.64,78.611,1.88134587]
[1772264080633,1.99647624,78.639,78.602,1.88134587]
[1772264080817,1.99647624,78.639,78.61,17.3412772]
[1772264081018,12.71471983,78.649,78.611,1.88134587]
[1772264081212,1.99647624,78.648,78.611,1.88134587]
[1772264081632,63.7617111,78.704,78.559,108.19893327]
[1772264081633,19.25219233,78.64,78.602,1.93148057]
[1772264081819,19.25219233,78.64,78.61,17.3412772]
[1772264082213,1.91091513,78.64,78.61,17.3412772]
[1772264082635,19.25219233,78.64,78.61,17.3412772]
[1772264082818,19.25219233,78.64,78.593,1.93148057]
[1772264083017,19.25219233,78.64,78.585,31.81265899]
[1772264083018,38.36,78.746,78.631,0.28432314]
[1772264083322,38.36,78.746,78.621,7.57666559]
[1772264083323,17.3412772,78.71,78.67,17.3412772]
[1772264083516,17.3412772,78.69,78.621,1.93148057]
[1772264083711,12.70825655,78.689,78.651,12.71439651]
[1772264083928,12.70825655,78.689,78.66,17.3412772]
[1772264084914,17.3412772,78.68,78.638,1.93148057]
[1772264085117,0.4906384,78.682,78.65,17.3412772]
[1772264086618,0.47335795,78.68,78.641,1.93148057]
[1772264086823,17.3412772,78.67,78.64,17.3412772]
[1772264087023,0.47335795,78.679,78.64,17.3412772]
[1772264087422,0.46484787,78.669,78.631,1.93148057]
[1772264087632,44.48342038,78.681,78.621,1.93148057]
[1772264087633,0.46484787,78.68,78.621,1.93148057]
[1772264087836,17.3412772,78.69,78.651,1.93148057]
[1772264088034,0.46484787,78.689,78.651,1.93148057]
[1772264088336,12.70389755,78.716,78.681,1.93148057]
[1772264088926,17.3412772,78.71,78.681,1.93148057]
[1772264089129,17.3412772,78.71,78.669,1.93148057]
[1772264089321,17.78349824,78.7,78.661,1.93148057]
[1772264089524,17.3412772,78.7,78.661,1.93148057]
[1772264089925,0.41984184,78.71,78.67,19.27275777]
[1772264090138,17.3412772,78.7,78.67,17.3412772]
[1772264090326,17.3412772,78.7,78.67,19.27275777]
[1772264090739,12.70664176,78.699,78.671,1.93148057]
[1772264091244,63.73242145,78.759,78.671,1.93148057]
[1772264091245,17.3412772,78.72,78.681,1.93148057]
[1772264091429,0.37581511,78.74,78.7,17.3412772]
[1772264091624,17.3412772,78.73,78.691,1.93148057]
[1772264092018,17.3412772,78.73,78.701,1.93148057]
[1772264092219,44.44670204,78.746,78.68,17.3412772]
[1772264092220,0.37581511,78.719,78.68,17.3412772]
[1772264092425,0.37581511,78.719,78.677,1.93148057]
[1772264092426,17.3412772,78.71,78.677,1.93148057]
[1772264092825,12.70664176,78.699,78.677,1.93148057]
[1772264093029,12.70664176,78.699,78.648,31.78715418]
[1772264093030,12.70664176,78.699,78.666,1.93148057]
[1772264093540,12.70664176,78.699,78.67,17.3412772]
[1772264093840,12.70664176,78.699,78.671,1.93148057]
[1772264094020,12.70573231,78.705,78.671,1.93148057]
[1772264095344,12.70573231,78.705,78.673,1.93148057]
[1772264097430,12.70573231,78.705,78.68,17.3412772]
[1772264097637,12.70573231,78.705,78.68,1.93148057]
[1772264099127,12.70573231,78.705,78.681,1.93148057]
[1772264100239,69.27717741,78.772,78.691,1.93148057]
[1772264100240,12.7034134,78.719,78.691,1.93148057]
[1772264100633,63.49625982,78.745,78.682,12.70938715]
[1772264100634,17.3412772,78.74,78.701,1.93148057]
[1772264100837,17.3412772,78.73,78.701,1.93148057]
[1772264101556,17.3412772,78.73,78.66,17.3412772]
[1772264101557,1.91091513,78.737,78.68,17.3412772]
[1772264101848,17.3412772,78.74,78.7,17.3412772]
[1772264102151,17.3412772,78.73,78.7,17.3412772]
[1772264102447,44.44670204,78.746,78.69,17.3412772]
[1772264102448,17.3412772,78.72,78.69,17.3412772]
[1772264102747,1.91091513,78.719,78.68,17.3412772]